fUSD/lending_fUSD_20260529
["ID","MTS","AMOUNT","RATE_DAILY","PERIOD"]
[423363115,1780067449000,-150.980369,0.00031416,30]
[423363106,1780067449000,-163.0,0.00031375,3]
[423363105,1780067449000,-675.39967715,0.00031369,2]
[423363107,1780067449000,-2318.0,0.00031375,3]
[423363111,1780067449000,-163.0,0.000314,3]
[423363109,1780067449000,-163.0,0.000314,3]
[423363110,1780067449000,-163.0,0.000314,3]
[423363112,1780067449000,-1590.0,0.000314,3]
[423363114,1780067449000,-2362.0,0.000314,3]
[423363113,1780067449000,-2318.0,0.000314,3]
[423363117,1780067449000,-179.932507,0.00031434,7]
[423363120,1780067449000,-179.932507,0.00031434,7]
[423363090,1780067449000,-151.0,0.0003135,7]
[423363169,1780067449000,-1884.841783,0.00031468,7]
[423363172,1780067449000,-1884.841783,0.00031468,7]
[423363234,1780067449000,-500.0,0.00031468,2]
[423363240,1780067449000,-500.0,0.00031468,2]
[423363230,1780067449000,-500.0,0.00031468,2]
[423363232,1780067449000,-500.0,0.00031468,2]
[423363244,1780067449000,-500.0,0.00031468,2]
[423363246,1780067449000,-500.0,0.00031468,2]
[423363250,1780067449000,-500.0,0.00031468,2]
[423363248,1780067449000,-500.0,0.00031468,2]
[423363258,1780067449000,-500.0,0.00031468,2]
[423363259,1780067449000,-500.0,0.00031468,2]
[423363262,1780067449000,-500.0,0.00031468,2]
[423363256,1780067449000,-500.0,0.00031468,2]
[423363260,1780067449000,-500.0,0.00031468,2]
[423363257,1780067449000,-500.0,0.00031468,2]
[423363252,1780067449000,-500.0,0.00031468,2]
[423363261,1780067449000,-500.0,0.00031468,2]
[423363263,1780067449000,-500.0,0.00031468,2]
[423363254,1780067449000,-500.0,0.00031468,2]
[423363265,1780067449000,-500.0,0.00031468,2]
[423363264,1780067449000,-500.0,0.00031468,2]
[423363269,1780067449000,-500.0,0.00031468,2]
[423363272,1780067449000,-500.0,0.00031468,2]
[423363268,1780067449000,-500.0,0.00031468,2]
[423363267,1780067449000,-500.0,0.00031468,2]
[423363271,1780067449000,-500.0,0.00031468,2]
[423363266,1780067449000,-500.0,0.00031468,2]
[423363166,1780067449000,-1084.48123552,0.00031468,5]
[423363226,1780067449000,-500.0,0.00031468,2]
[423363242,1780067449000,-500.0,0.00031468,2]
[423363270,1780067449000,-500.0,0.00031468,2]
[423363228,1780067449000,-500.0,0.00031468,2]
[423363238,1780067449000,-500.0,0.00031468,2]
[423363177,1780067449000,-1884.841783,0.00031468,7]
[423363185,1780067449000,-184.619513,0.00031468,7]
[423363181,1780067449000,-1884.841783,0.00031468,7]
[423363191,1780067449000,-1640.557736,0.00031468,7]
[423363179,1780067449000,-184.619513,0.00031468,7]
[423363183,1780067449000,-184.619513,0.00031468,7]
[423363189,1780067449000,-1640.557736,0.00031468,7]
[423363195,1780067449000,-1640.557736,0.00031468,7]
[423363197,1780067449000,-216.017004,0.00031468,7]
[423363186,1780067449000,-1640.557736,0.00031468,7]
[423363193,1780067449000,-216.017004,0.00031468,7]
[423363199,1780067449000,-216.017004,0.00031468,7]
[423363200,1780067449000,-216.017004,0.00031468,7]
[423363175,1780067449000,-184.619513,0.00031468,7]
[423363219,1780067449000,-500.0,0.00031468,2]
[423363224,1780067449000,-500.0,0.00031468,2]
[423363236,1780067449000,-500.0,0.00031468,2]
[423363223,1780067449000,-500.0,0.00031468,2]
[423363221,1780067449000,-500.0,0.00031468,2]
[423363210,1780067449000,-500.0,0.00031468,2]
[423363218,1780067449000,-500.0,0.00031468,2]
[423363216,1780067449000,-500.0,0.00031468,2]
[423363214,1780067449000,-500.0,0.00031468,2]
[423363202,1780067449000,-500.0,0.00031468,2]
[423363206,1780067449000,-500.0,0.00031468,2]
[423363208,1780067449000,-500.0,0.00031468,2]
[423363204,1780067449000,-500.0,0.00031468,2]
[423363212,1780067449000,-500.0,0.00031468,2]
[423363309,1780067450000,-500.0,0.00031468,2]
[423363312,1780067450000,-500.0,0.00031468,2]
[423363310,1780067450000,-500.0,0.00031468,2]
[423363308,1780067450000,-500.0,0.00031468,2]
[423363305,1780067450000,-500.0,0.00031468,2]
[423363307,1780067450000,-500.0,0.00031468,2]
[423363311,1780067450000,-500.0,0.00031468,2]
[423363304,1780067450000,-500.0,0.00031468,2]
[423363303,1780067450000,-500.0,0.00031468,2]
[423363314,1780067450000,-500.0,0.00031468,2]
[423363306,1780067450000,-500.0,0.00031468,2]
[423363318,1780067450000,-789.412216,0.00031486,11]
[423363320,1780067450000,-200.0,0.00031491,20]
[423363317,1780067450000,-151.0,0.00031468,7]
[423363321,1780067450000,-200.0,0.00031491,15]
[423363319,1780067450000,-200.0,0.00031491,30]
[423363316,1780067450000,-151.0,0.00031468,7]
[423363326,1780067450000,-200.0,0.00031491,2]
[423363324,1780067450000,-200.0,0.00031491,2]
[423363322,1780067450000,-200.0,0.00031491,7]
[423363325,1780067450000,-200.0,0.00031491,2]
[423363323,1780067450000,-200.0,0.00031491,3]
[423363328,1780067450000,-2881.73,0.000315,7]
[423363327,1780067450000,-201.51348902,0.00031491,2]
[423363338,1780067450000,-1076.90462083,0.00031654,5]
[423363302,1780067450000,-500.0,0.00031468,2]
[423363315,1780067450000,-287.87789,0.00031468,2]
[423363313,1780067450000,-500.0,0.00031468,2]
[423363282,1780067450000,-500.0,0.00031468,2]
[423363298,1780067450000,-500.0,0.00031468,2]
[423363334,1780067450000,-188.44606373,0.00031578,2]
[423363275,1780067450000,-500.0,0.00031468,2]
[423363276,1780067450000,-500.0,0.00031468,2]
[423363274,1780067450000,-500.0,0.00031468,2]
[423363273,1780067450000,-500.0,0.00031468,2]
[423363278,1780067450000,-500.0,0.00031468,2]
[423363288,1780067450000,-500.0,0.00031468,2]
[423363277,1780067450000,-500.0,0.00031468,2]
[423363280,1780067450000,-500.0,0.00031468,2]
[423363279,1780067450000,-500.0,0.00031468,2]
[423363281,1780067450000,-500.0,0.00031468,2]
[423363283,1780067450000,-500.0,0.00031468,2]
[423363287,1780067450000,-500.0,0.00031468,2]
[423363285,1780067450000,-500.0,0.00031468,2]
[423363284,1780067450000,-500.0,0.00031468,2]
[423363286,1780067450000,-500.0,0.00031468,2]
[423363289,1780067450000,-500.0,0.00031468,2]
[423363291,1780067450000,-500.0,0.00031468,2]
[423363292,1780067450000,-500.0,0.00031468,2]
[423363299,1780067450000,-500.0,0.00031468,2]
[423363294,1780067450000,-500.0,0.00031468,2]
[423363290,1780067450000,-500.0,0.00031468,2]
[423363300,1780067450000,-500.0,0.00031468,2]
[423363293,1780067450000,-500.0,0.00031468,2]
[423363295,1780067450000,-500.0,0.00031468,2]
[423363297,1780067450000,-500.0,0.00031468,2]
[423363301,1780067450000,-500.0,0.00031468,2]
[423363296,1780067450000,-500.0,0.00031468,2]
[423363337,1780067450000,-1043.58321816,0.00031654,5]
[423363362,1780067450000,-982.98610207,0.00031729,7]
[423363336,1780067450000,-1091.03645899,0.00031654,5]
[423363366,1780067450000,-821.36087227,0.00031734,7]
[423363364,1780067450000,-875.23930948,0.00031729,7]
[423363370,1780067450000,-1859.51294556,0.00031734,7]
[423363371,1780067450000,-826.43919643,0.00031734,7]
[423363372,1780067450000,-1044.18462521,0.00031734,7]
[423363369,1780067450000,-767.20655078,0.00031734,7]
[423363374,1780067450000,-953.19115159,0.00031734,7]
[423363373,1780067450000,-1442.0927117,0.00031734,7]
[423363367,1780067450000,-884.15321105,0.00031734,7]
[423363386,1780067450000,-2800.0,0.000319,11]
[423363376,1780067450000,-825.11841493,0.00031734,7]
[423363375,1780067450000,-955.59889369,0.00031734,7]
[423363377,1780067450000,-852.0590205,0.00031734,7]
[423363381,1780067450000,-996.0,0.00031739,9]
[423363383,1780067450000,-150.0,0.00031858,2]
[423363382,1780067450000,-2318.0,0.00031855,3]
[423363385,1780067450000,-200.0,0.000319,12]
[423363379,1780067450000,-752.48991395,0.00031734,7]
[423363378,1780067450000,-951.65454972,0.00031734,7]
[423363380,1780067450000,-1711.80497459,0.00031734,7]
[423363384,1780067450000,-500.0,0.00031885,2]
[423363387,1780067450000,-1354.19404032,0.00031921,4]
[423363390,1780067450000,-829.09902563,0.00031961,7]
[423363388,1780067450000,-816.12079444,0.00031951,7]
[423363392,1780067450000,-546.02,0.00031999,2]
[423363389,1780067450000,-847.01617399,0.00031951,7]
[423363332,1780067450000,-500.0,0.00031559,14]
[423363365,1780067450000,-842.51474654,0.00031734,7]
[423363363,1780067450000,-1618.24475718,0.00031729,7]
[423363368,1780067450000,-998.50342862,0.00031734,7]
[423363352,1780067450000,-1590.0,0.0003172,3]
[423363331,1780067450000,-1488.9154272,0.00031534,52]
[423363333,1780067450000,-671.55797359,0.00031561,7]
[423363329,1780067450000,-5398.55999999,0.00031507,30]
[423363335,1780067450000,-2318.0,0.00031625,3]
[423363330,1780067450000,-1488.9154272,0.00031534,52]
[423363359,1780067450000,-765.32477878,0.00031729,7]
[423363341,1780067450000,-1048.38820201,0.00031654,5]
[423363342,1780067450000,-1016.42906888,0.00031654,5]
[423363348,1780067450000,-674.0,0.00031681,30]
[423363340,1780067450000,-1091.05345002,0.00031654,5]
[423363349,1780067450000,-841.0,0.00031681,30]
[423363343,1780067450000,-1019.60413602,0.00031654,5]
[423363345,1780067450000,-2318.0,0.00031671,3]
[423363350,1780067450000,-1590.0,0.00031689,3]
[423363339,1780067450000,-1047.39968207,0.00031654,5]
[423363346,1780067450000,-2019.51,0.00031673,2]
[423363344,1780067450000,-1590.0,0.00031671,3]
[423363358,1780067450000,-989.15661998,0.00031729,7]
[423363361,1780067450000,-852.26797359,0.00031729,7]
[423363360,1780067450000,-785.42242208,0.00031729,7]
[423363356,1780067450000,-163.0,0.0003172,3]
[423363351,1780067450000,-163.0,0.00031689,3]
[423363354,1780067450000,-1590.0,0.0003172,3]
[423363391,1780067450000,-844.24959643,0.00031963,2]
[423363357,1780067450000,-163.0,0.0003172,3]
[423363355,1780067450000,-699.0,0.0003172,3]
[423363353,1780067450000,-1590.0,0.0003172,3]
[423363347,1780067450000,-152.0,0.00031679,29]
[423363400,1780067451000,-163.0,0.0003204,3]
[423363405,1780067451000,-500.0,0.00032043,2]
[423363403,1780067451000,-500.0,0.00032043,2]
[423363406,1780067451000,-500.0,0.00032043,2]
[423363408,1780067451000,-1884.841783,0.00032044,7]
[423363402,1780067451000,-1590.0,0.0003204,3]
[423363407,1780067451000,-335.32356406,0.00032043,2]
[423363398,1780067451000,-2318.0,0.0003204,3]
[423363395,1780067451000,-1590.0,0.00032015,3]
[423363409,1780067451000,-1884.841783,0.00032044,7]
[423363399,1780067451000,-2318.0,0.0003204,3]
[423363397,1780067451000,-1590.0,0.0003204,3]
[423363396,1780067451000,-2318.0,0.0003204,3]
[423363394,1780067451000,-2318.0,0.00032015,3]
[423363393,1780067451000,-160.0,0.00032,120]
[423363404,1780067451000,-500.0,0.00032043,2]
[423363401,1780067451000,-2318.0,0.0003204,3]
[423363411,1780067451000,-1884.841783,0.00032044,7]
[423363416,1780067451000,-151.0,0.00032044,2]
[423363412,1780067451000,-184.619513,0.00032044,7]
[423363410,1780067451000,-184.619513,0.00032044,7]
[423363428,1780067451000,-151.0,0.00032044,7]
[423363427,1780067451000,-151.0,0.00032044,7]
[423363425,1780067451000,-216.017004,0.00032044,7]
[423363430,1780067451000,-925872.34242441,0.00032044,2]
[423363424,1780067451000,-216.017004,0.00032044,7]
[423363426,1780067451000,-151.0,0.00032044,7]
[423363422,1780067451000,-1640.557736,0.00032044,7]
[423363423,1780067451000,-216.017004,0.00032044,7]
[423363429,1780067451000,-151.0,0.00032044,7]
[423363417,1780067451000,-248.908852,0.00032044,2]
[423363419,1780067451000,-1640.557736,0.00032044,7]
[423363414,1780067451000,-184.619513,0.00032044,7]
[423363418,1780067451000,-1640.557736,0.00032044,7]
[423363415,1780067451000,-184.619513,0.00032044,7]
[423363420,1780067451000,-1640.557736,0.00032044,7]
[423363413,1780067451000,-1884.841783,0.00032044,7]
[423363421,1780067451000,-216.017004,0.00032044,7]
[423363431,1780067453000,-737.02405971,0.00019413,2]
[423363432,1780067453000,-293.16850159,0.00019413,2]
[423363433,1780067453000,-4911.48127201,0.00019413,2]
[423363437,1780067454000,-1600.0,0.00016773,2]
[423363435,1780067454000,-661.3543706,0.00014909,2]
[423363438,1780067454000,-1600.0,0.00018636,2]
[423363440,1780067454000,-151.0,0.00019178,2]
[423363434,1780067454000,-437.47049527,0.00014909,2]
[423363439,1780067454000,-151.0,0.00019178,2]
[423363441,1780067454000,-11032.49486587,0.00019413,2]
[423363442,1780067454000,-151.0,0.00019178,2]
[423363443,1780067454000,-151.0,0.00019178,2]
[423363444,1780067454000,-151.0,0.00019178,2]
[423363445,1780067454000,-151.0,0.00019178,2]
[423363447,1780067454000,-13087.77457706,0.00019413,2]
[423363446,1780067454000,-3069.67276787,0.00019413,2]
[423363436,1780067454000,-501.17513413,0.00014909,2]
[423363476,1780067492000,-437.96751,0.000308,7]
[423363477,1780067492000,-503.81102,0.000308,7]
[423363471,1780067492000,-930.71,0.0002959,30]
[423363466,1780067492000,-437.96751,0.000287,7]
[423363473,1780067492000,-930.71,0.0002959,2]
[423363468,1780067492000,-930.71,0.0002959,30]
[423363470,1780067492000,-930.71,0.0002959,2]
[423363479,1780067492000,-503.81102,0.0003135,7]
[423363469,1780067492000,-930.71,0.0002959,7]
[423363474,1780067492000,-151.11,0.00030288,120]
[423363478,1780067492000,-1342.0,0.00030929,30]
[423363490,1780067492000,-839.44746699,0.00032157,7]
[423363480,1780067492000,-437.96751,0.0003135,7]
[423363475,1780067492000,-503.81102,0.000308,7]
[423363472,1780067492000,-930.71,0.0002959,7]
[423363467,1780067492000,-418.0,0.00028944,2]
[423363455,1780067492000,-66794.87157016,0.00020616,2]
[423363458,1780067492000,-503.81102,0.0002082,2]
[423363481,1780067492000,-503.81102,0.0003135,7]
[423363450,1780067492000,-33663.25552605,0.00019413,2]
[423363451,1780067492000,-1686.10293138,0.00019533,2]
[423363452,1780067492000,-33230.1787,0.00019866,2]
[423363449,1780067492000,-151.0,0.00019178,2]
[423363453,1780067492000,-1686.10293138,0.00019885,2]
[423363454,1780067492000,-1600.0,0.000205,2]
[423363463,1780067492000,-503.81102,0.000287,7]
[423363459,1780067492000,-1600.0,0.00022363,2]
[423363462,1780067492000,-437.96751,0.00027397,2]
[423363464,1780067492000,-437.96751,0.000287,7]
[423363456,1780067492000,-503.81102,0.0002082,2]
[423363461,1780067492000,-437.96751,0.00027397,2]
[423363460,1780067492000,-418.0,0.00025944,2]
[423363457,1780067492000,-503.81102,0.0002082,2]
[423363465,1780067492000,-503.81102,0.000287,7]
[423363489,1780067492000,-1590.0,0.00032098,3]
[423363519,1780067492000,-1590.0,0.00032237,11]
[423363484,1780067492000,-437.96751,0.00032044,7]
[423363506,1780067492000,-1135.41102419,0.00032219,20]
[423363505,1780067492000,-1117.91132793,0.00032219,20]
[423363507,1780067492000,-1003.05202145,0.00032219,20]
[423363508,1780067492000,-1066.44621609,0.00032219,20]
[423363511,1780067492000,-1113.7391173,0.00032219,20]
[423363513,1780067492000,-2318.0,0.0003222,3]
[423363510,1780067492000,-1054.17425824,0.00032219,20]
[423363514,1780067492000,-368.30440275,0.00032222,30]
[423363509,1780067492000,-1054.24049298,0.00032219,20]
[423363512,1780067492000,-2318.0,0.0003222,3]
[423363517,1780067492000,-1000.0,0.00032232,120]
[423363516,1780067492000,-1000.0,0.00032232,7]
[423363518,1780067492000,-1000.0,0.00032232,90]
[423363520,1780067492000,-2318.0,0.00032237,11]
[423363483,1780067492000,-503.81102,0.00032044,7]
[423363504,1780067492000,-1069.25473256,0.00032219,20]
[423363497,1780067492000,-1096.96704291,0.00032219,20]
[423363515,1780067492000,-188.44606373,0.0003223,2]
[423363503,1780067492000,-1015.87497212,0.00032219,20]
[423363486,1780067492000,-424127.65757559,0.00032044,2]
[423363493,1780067492000,-500.0,0.00032204,120]
[423363488,1780067492000,-10000.0,0.00032084,2]
[423363482,1780067492000,-418.0,0.00031944,2]
[423363485,1780067492000,-503.81102,0.00032044,7]
[423363492,1780067492000,-163.0,0.00032175,3]
[423363500,1780067492000,-1006.36251256,0.00032219,20]
[423363487,1780067492000,-1586.820872,0.00032044,2]
[423363491,1780067492000,-157.36465294,0.00032165,120]
[423363502,1780067492000,-1001.17784209,0.00032219,20]
[423363494,1780067492000,-609.02,0.00032204,120]
[423363495,1780067492000,-3115.9,0.0003221,5]
[423363496,1780067492000,-1124.04141473,0.00032219,20]
[423363501,1780067492000,-1044.95279562,0.00032219,20]
[423363499,1780067492000,-1025.66408685,0.00032219,20]
[423363498,1780067492000,-1100.20455734,0.00032219,20]
[423363543,1780067493000,-500.0,0.00032329,7]
[423363564,1780067493000,-985.63304672,0.0003262,7]
[423363550,1780067493000,-163.0,0.0003236,11]
[423363547,1780067493000,-1590.0,0.0003236,11]
[423363549,1780067493000,-2318.0,0.0003236,11]
[423363551,1780067493000,-8250.8737628,0.00032436,30]
[423363541,1780067493000,-901.782342,0.00032329,7]
[423363553,1780067493000,-2318.0,0.00032585,11]
[423363548,1780067493000,-163.0,0.0003236,11]
[423363563,1780067493000,-1011.01769585,0.0003262,7]
[423363558,1780067493000,-163.0,0.00032606,11]
[423363561,1780067493000,-1050.28717138,0.00032615,7]
[423363555,1780067493000,-2318.0,0.00032585,11]
[423363557,1780067493000,-1590.0,0.00032606,11]
[423363556,1780067493000,-2318.0,0.00032606,11]
[423363554,1780067493000,-2318.0,0.00032585,11]
[423363562,1780067493000,-986.00124873,0.00032615,7]
[423363560,1780067493000,-1022.72156831,0.00032615,7]
[423363559,1780067493000,-942.5069065,0.00032615,7]
[423363546,1780067493000,-922.0,0.0003236,11]
[423363552,1780067493000,-2110.0,0.000325,2]
[423363542,1780067493000,-901.782342,0.00032329,7]
[423363525,1780067493000,-996.0,0.00032294,9]
[423363544,1780067493000,-163.0,0.00032335,11]
[423363565,1780067493000,-1198.20411435,0.0003262,7]
[423363526,1780067493000,-2318.0,0.00032311,11]
[423363528,1780067493000,-901.782342,0.00032329,7]
[423363527,1780067493000,-901.782342,0.00032329,7]
[423363523,1780067493000,-1428.915,0.00032273,32]
[423363521,1780067493000,-2318.0,0.00032237,11]
[423363524,1780067493000,-157.689,0.00032273,32]
[423363522,1780067493000,-1590.0,0.00032265,11]
[423363538,1780067493000,-901.782342,0.00032329,7]
[423363545,1780067493000,-151.0847677,0.00032348,7]
[423363540,1780067493000,-901.782342,0.00032329,7]
[423363529,1780067493000,-901.782342,0.00032329,7]
[423363535,1780067493000,-901.782342,0.00032329,7]
[423363534,1780067493000,-901.782342,0.00032329,7]
[423363539,1780067493000,-901.782342,0.00032329,7]
[423363536,1780067493000,-901.782342,0.00032329,7]
[423363537,1780067493000,-901.782342,0.00032329,7]
[423363531,1780067493000,-901.782342,0.00032329,7]
[423363532,1780067493000,-901.782342,0.00032329,7]
[423363530,1780067493000,-901.782342,0.00032329,7]
[423363533,1780067493000,-901.782342,0.00032329,7]
[423363568,1780067493000,-1730.51125404,0.0003262,7]
[423363569,1780067493000,-1143.82938191,0.0003262,7]
[423363574,1780067493000,-1590.0,0.00032655,11]
[423363595,1780067493000,-163.0,0.00032815,11]
[423363593,1780067493000,-3600.0,0.000328,11]
[423363596,1780067493000,-538.33243602,0.00032845,30]
[423363598,1780067493000,-996.0,0.00032848,10]
[423363591,1780067493000,-2318.0,0.00032787,11]
[423363601,1780067493000,-546.02,0.00032876,2]
[423363599,1780067493000,-994.91883075,0.00032852,7]
[423363600,1780067493000,-1013.09951572,0.00032854,2]
[423363603,1780067493000,-151.0,0.00032877,2]
[423363597,1780067493000,-1000.0,0.00032846,94]
[423363611,1780067493000,-307.361,0.00032877,7]
[423363613,1780067493000,-307.361,0.00032877,7]
[423363602,1780067493000,-194.12108393,0.00032877,2]
[423363604,1780067493000,-1000.0,0.00032877,120]
[423363608,1780067493000,-363.791022,0.00032877,7]
[423363607,1780067493000,-363.791022,0.00032877,7]
[423363606,1780067493000,-363.791022,0.00032877,7]
[423363605,1780067493000,-732.26858832,0.00032877,2]
[423363610,1780067493000,-363.791022,0.00032877,7]
[423363567,1780067493000,-2231.41553467,0.0003262,7]
[423363612,1780067493000,-363.791022,0.00032877,7]
[423363594,1780067493000,-1590.0,0.00032815,11]
[423363609,1780067493000,-363.791022,0.00032877,7]
[423363592,1780067493000,-500.0,0.00032795,2]
[423363575,1780067493000,-163.0,0.00032655,11]
[423363614,1780067493000,-151.0,0.00032877,7]
[423363573,1780067493000,-929.02,0.0003264,30]
[423363566,1780067493000,-918.13589374,0.0003262,7]
[423363576,1780067493000,-1590.0,0.00032655,11]
[423363571,1780067493000,-1970.13337242,0.0003262,7]
[423363590,1780067493000,-163.0,0.00032787,11]
[423363572,1780067493000,-2054.16596951,0.0003262,7]
[423363578,1780067493000,-1590.0,0.0003268,11]
[423363577,1780067493000,-166.0,0.0003268,11]
[423363570,1780067493000,-1141.98545966,0.0003262,7]
[423363581,1780067493000,-674.0,0.00032681,30]
[423363588,1780067493000,-1590.0,0.00032738,11]
[423363585,1780067493000,-18960.85610899,0.00032719,2]
[423363582,1780067493000,-841.0,0.00032681,30]
[423363586,1780067493000,-2318.0,0.00032738,11]
[423363587,1780067493000,-2318.0,0.00032738,11]
[423363583,1780067493000,-3000.0,0.00032684,2]
[423363580,1780067493000,-1590.0,0.0003268,11]
[423363579,1780067493000,-2318.0,0.0003268,11]
[423363589,1780067493000,-5981.2913539,0.00032771,2]
[423363584,1780067493000,-596.66,0.000327,20]
[423363638,1780067494000,-681.158543,0.00032877,7]
[423363640,1780067494000,-681.158543,0.00032877,7]
[423363643,1780067494000,-151.0,0.00032877,7]
[423363642,1780067494000,-151.0,0.00032877,7]
[423363646,1780067494000,-681.158543,0.00032877,7]
[423363647,1780067494000,-681.158543,0.00032877,7]
[423363641,1780067494000,-681.158543,0.00032877,7]
[423363645,1780067494000,-151.0,0.00032877,7]
[423363657,1780067494000,-374.734968,0.00032877,7]
[423363644,1780067494000,-151.0,0.00032877,7]
[423363649,1780067494000,-374.734968,0.00032877,7]
[423363658,1780067494000,-151.0,0.00032877,7]
[423363652,1780067494000,-374.734968,0.00032877,7]
[423363650,1780067494000,-681.158543,0.00032877,7]
[423363660,1780067494000,-151.0,0.00032877,7]
[423363651,1780067494000,-681.158543,0.00032877,7]
[423363659,1780067494000,-151.0,0.00032877,7]
[423363653,1780067494000,-374.734968,0.00032877,7]
[423363648,1780067494000,-374.734968,0.00032877,7]
[423363632,1780067494000,-256.045059,0.00032877,7]
[423363622,1780067494000,-307.361,0.00032877,7]
[423363631,1780067494000,-151.0,0.00032877,7]
[423363656,1780067494000,-374.734968,0.00032877,7]
[423363615,1780067494000,-151.0,0.00032877,7]
[423363616,1780067494000,-363.791022,0.00032877,7]
[423363617,1780067494000,-307.361,0.00032877,7]
[423363618,1780067494000,-363.791022,0.00032877,7]
[423363619,1780067494000,-151.0,0.00032877,7]
[423363620,1780067494000,-307.361,0.00032877,7]
[423363626,1780067494000,-256.045059,0.00032877,7]
[423363627,1780067494000,-151.0,0.00032877,7]
[423363629,1780067494000,-256.045059,0.00032877,7]
[423363621,1780067494000,-151.0,0.00032877,7]
[423363623,1780067494000,-256.045059,0.00032877,7]
[423363624,1780067494000,-151.0,0.00032877,7]
[423363628,1780067494000,-307.361,0.00032877,7]
[423363634,1780067494000,-256.045059,0.00032877,7]
[423363635,1780067494000,-256.045059,0.00032877,7]
[423363633,1780067494000,-216.310473,0.00032877,7]
[423363636,1780067494000,-256.045059,0.00032877,7]
[423363630,1780067494000,-307.361,0.00032877,7]
[423363637,1780067494000,-256.045059,0.00032877,7]
[423363625,1780067494000,-307.361,0.00032877,7]
[423363654,1780067494000,-374.734968,0.00032877,7]
[423363639,1780067494000,-681.158543,0.00032877,7]
[423363661,1780067494000,-151.0,0.00032877,7]
[423363692,1780067494000,-244.275542,0.00032877,7]
[423363686,1780067494000,-411.87155,0.00032877,7]
[423363693,1780067494000,-244.275542,0.00032877,7]
[423363688,1780067494000,-244.275542,0.00032877,7]
[423363687,1780067494000,-411.87155,0.00032877,7]
[423363690,1780067494000,-637.921807,0.00032877,7]
[423363691,1780067494000,-637.921807,0.00032877,7]
[423363694,1780067494000,-637.921807,0.00032877,7]
[423363695,1780067494000,-637.921807,0.00032877,7]
[423363684,1780067494000,-411.87155,0.00032877,7]
[423363696,1780067494000,-244.275542,0.00032877,7]
[423363697,1780067494000,-244.275542,0.00032877,7]
[423363698,1780067494000,-637.921807,0.00032877,7]
[423363700,1780067494000,-244.275542,0.00032877,7]
[423363702,1780067494000,-637.921807,0.00032877,7]
[423363701,1780067494000,-244.275542,0.00032877,7]
[423363703,1780067494000,-637.921807,0.00032877,7]
[423363704,1780067494000,-237.899674,0.00032877,7]
[423363705,1780067494000,-237.899674,0.00032877,7]
[423363655,1780067494000,-374.734968,0.00032877,7]
[423363699,1780067494000,-637.921807,0.00032877,7]
[423363685,1780067494000,-411.87155,0.00032877,7]
[423363689,1780067494000,-244.275542,0.00032877,7]
[423363675,1780067494000,-151.0,0.00032877,7]
[423363662,1780067494000,-151.0,0.00032877,7]
[423363671,1780067494000,-151.0,0.00032877,7]
[423363665,1780067494000,-151.0,0.00032877,7]
[423363664,1780067494000,-151.0,0.00032877,7]
[423363670,1780067494000,-151.0,0.00032877,7]
[423363683,1780067494000,-411.87155,0.00032877,7]
[423363667,1780067494000,-151.0,0.00032877,7]
[423363669,1780067494000,-151.0,0.00032877,7]
[423363666,1780067494000,-151.0,0.00032877,7]
[423363668,1780067494000,-151.0,0.00032877,7]
[423363663,1780067494000,-151.0,0.00032877,7]
[423363681,1780067494000,-151.0,0.00032877,7]
[423363682,1780067494000,-186.591685,0.00032877,7]
[423363672,1780067494000,-151.0,0.00032877,7]